{"text_format":"1","workbook":"xlsx","n_sheets":2,"sheets":["DATOS","Simulador"],"not_rendered":{"charts":0,"images":1,"macros":1,"external_links":0,"defined_names":10,"comments":0,"pivot_tables":0},"unopened":[],"bounds":{"document_bytes":16777216,"sheet_cells":100000,"rows_first":2000,"rows_last":500,"rows_between":2000,"halvings":0,"cell_chars":16384,"cell_head_chars":4096},"cells_cut":0,"cells_raw":0,"read":"whole","date_system":"1900"}

{"sheet":"DATOS","index":0,"n_rows":85,"n_cols":8,"rows_kept":85,"cut":false,"hidden":true,"merged":[]}
[null,"Parámetros Iniciales"]
[]
[null,"ETAPA",null,null,"PREGRADO_INGRESANTE","PREGRADO_NO_INGRESANTE","POSGRADO_INGRESANTE","POSGRADO_NO_INGRESANTE"]
[null,"PREGRADO",null,null,"Estudios Generales de Letras","-","-","-"]
[null,"POSGRADO",null,null,"Estudios Generales de Ciencias"]
[null,null,null,null,"Educación "]
[null,null,null,null,"Arte y Diseño"]
[null,null,null,null,"Quimica, arquitectura y urbanismo"]
[null,null,null,null,"Artes Escenicas"]
[]
[null,"MODALIDAD"]
[null,"CUOTA DOBLE",5]
[null,"CUOTAS IGUALES",4]
[]
[null," INGRESANTE"]
[null,"SI"]
[null,"NO"]
[]
[null,"SEMESTRE"]
[null,"2025-1"]
[]
[null,"Escalas de los alumnos ciclo 2025-1"]
[]
[]
["ID","Etapa del alumno","Escala","Valor del crédito","D. de Matrícula (*)"]
[1,"Pregrado","G1",298.60000000000002,122.6]
[{"$f":"A26+1","v":2},"Pregrado","G2",382.9,154.5]
[{"$f":"A27+1","v":3},"Pregrado","G3",480.4,191.7]
[4,"Pregrado","G4",588.79999999999995,232.8]
[5,"Pregrado","G5",705.4,277.10000000000002]
[6,"Pregrado","G6",825.4,322.60000000000002]
[7,"Pregrado","G7",942.8,367.4]
[8,"Pregrado","G8",1050.7,408.3]
[9,"Pregrado","G9",1141.2,442.8]
[10,"Pregrado",1,336.9,63]
[11,"Pregrado",2,442,80.2]
[12,"Pregrado",3,588.79999999999995,103.4]
[13,"Pregrado",4,783.4,134.1]
[14,"Pregrado",5,1054.2,178.4]
[{"$f":"A39+1","v":15},"Posgrado","A",1124.0999999999999,189.6]
[{"$f":"A40+1","v":16},"Posgrado","B",846.5,144.4]
[{"$f":"A41+1","v":17},"Posgrado","C",647.20000000000005,113.2]
[{"$f":"A42+1","v":18}]
[null,"Créditos 1era cuota académica"]
[]
[null,"Etapa del alumno","Etapa","Especialidad","Valor del crédito"]
[null,"Pregrado","Ingresante","Educación ",3.6]
[null,"Pregrado","Ingresante","Estudios Generales de Letras",3.8]
[null,"Pregrado","Ingresante","Estudios Generales de Ciencias",4]
[null,"Pregrado","Ingresante","Arte y Diseño",4.0999999999999996]
[null,"Pregrado","Ingresante","Quimica, arquitectura y urbanismo",4.4000000000000004]
[null,"Pregrado","Ingresante","Artes Escenicas",4.8]
[null,"Pregrado","Segundo semestre ",null,3.6]
[null,"Posgrado","Segundo semestre ",null,2]
[]
[]
[null,"Encargos de cobranza"]
[]
[null,"Encargo","Cobro en","Importe S/"]
[null,"Seguro contra accidentes","Cuota N° 2 y 3 (50% en cada cuota)",71]
[null,"Seguro oncológico nacional","Cuota N° 2 y 3 (50% en cada cuota)",60]
[null,"Seguro de renta educacional","Cuota N° 2 y 3 (50% en cada cuota)",173.4]
[null,"Seguro oncológico internacional","Cuota N° 2 y 3 (50% en cada cuota)",90]
[]
[null,"Fecha de vencimiento cuota académicas ciclo 2025-1"]
[]
[null,"Nro. De cuota","Fecha de vencimiento"]
[{"$f":"CONCATENATE(2023,-1,B68)","v":"2023-1Cuota N° 1"},"Cuota N° 1","2025-03-14"]
[{"$f":"CONCATENATE(2023,-1,B69)","v":"2023-1Cuota N° 2"},"Cuota N° 2","2025-04-16"]
[{"$f":"CONCATENATE(2023,-1,B70)","v":"2023-1Cuota N° 3"},"Cuota N° 3","2025-05-15"]
[{"$f":"CONCATENATE(2023,-1,B71)","v":"2023-1Cuota N° 4"},"Cuota N° 4","2025-06-16"]
[{"$f":"CONCATENATE(2023,-1,B72)","v":"2023-1Cuota N° 5"},"Cuota N° 5","2025-07-16"]
[{"$f":"CONCATENATE(2023,-2,B73)","v":"2023-2Cuota N° 1"},"Cuota N° 1"]
[{"$f":"CONCATENATE(2023,-2,B74)","v":"2023-2Cuota N° 2"},"Cuota N° 2"]
[{"$f":"CONCATENATE(2023,-2,B75)","v":"2023-2Cuota N° 3"},"Cuota N° 3"]
[{"$f":"CONCATENATE(2023,-2,B76)","v":"2023-2Cuota N° 4"},"Cuota N° 4"]
[{"$f":"CONCATENATE(2023,-2,B77)","v":"2023-2Cuota N° 5"},"Cuota N° 5"]
[]
[]
[]
[null,"Modalidad de cuota"]
[]
[null,"Modalidad","Forma de calculo"]
[null,"Cuotas iguales","A la cantidad de créditos matriculados se le descuenta los creditos pagados en la primera cuota académica, al resultado se le divide entre 4, de esta forma se obtiene el resultado del creditaje que se cobrará desde la 2da a la 5ta cuota"]
[null,"Cuota doble","A la cantidad de créditos matriculados se le descuenta los creditos pagados en la primera cuota académica, al resultado se le divide entre 5, de esta forma se obtiene el resultado del creditaje que se cobrará desde la 2da a la 4ta cuota. La 5ta cuota académica es el doble del importe de las anteriores "]

{"sheet":"Simulador","index":1,"n_rows":60,"n_cols":11,"rows_kept":60,"cut":false,"hidden":false,"merged":[[54,1,54,7],[42,1,42,7],[62,1,62,7],[61,1,61,7],[58,1,58,7],[59,1,59,7],[56,1,56,7],[57,1,57,7],[0,1,2,7],[51,1,51,7],[16,1,16,7],[31,1,31,7],[5,1,8,7],[18,1,18,7]]}
[null,"SIMULADOR DE CUOTAS ACADÉMICAS"]
[]
[]
[]
[null,"Estimado Alumno:"]
[null,"Con esta aplicación, podrá simular el costo de sus cuotas académicas según la cantidad de créditos en los que está matriculado o desea matricularse, teniendo en cuenta la escala de pensiones asignada, la modalidad de pago seleccionada y su etapa académica (Pregrado o Posgrado)."]
[]
[]
[]
[]
[null,"Ingrese los siguientes datos:"]
[]
[null,"Ciclo","2025-1",null,null,"Etapa","PREGRADO"]
[]
[null,"Ingresante",2,null,null,"Especialidad","-",null,null,null,"NO"]
[]
[null,"SEGUROS PUCP"]
[]
["(1)","En esta sección podrá simular el importe a pagar si esta afiliado o si opta por afiliarse a alguno de los seguros durante el ciclo académico, para ello solo deberá a marcar con un check el seguro correspondiente:"]
[]
[]
[null,"Seguro contra accidentes",null,null,false,"Importe:",0]
[]
[null,"Seguro oncológico internacional",null,null,false,"Importe:",0]
[]
[null,"Seguro oncológico nacional",null,null,false,"Importe:",0]
[]
["(1)","Seguro de renta educacional",null,null,false,"Importe:",0]
[]
[null,null,null,null,null,"Total",{"$f":"SUM(G22,G24,G26,G28)","v":0}]
[]
[null,"CREDITOS MATRICULADOS Y ESCALA DE PENSIONES"]
[]
[]
["(2)","Escala de pensiones:",null,null,null,"Créditos:",null,null,null,{"$f":"IF(C35=\"\",\"\",VLOOKUP(C35,Tabla8[[Escala]:[D. de Matrícula (*)]],3,FALSE))","v":""}]
[]
[]
["(3)"," Modalidad de pago:",null,null,null,"Valor del crédito",{"$f":"IF(C35=\"\",\"\",VLOOKUP(C35,Tabla8[[Escala]:[D. de Matrícula (*)]],2,FALSE))","v":""}]
[]
[]
[]
[]
[null,"(4)  CUOTAS ACADÉMICAS"]
[]
[null,"Cuota Académica","Fecha de vencimiento","Créditos","Derechos Académicos","Derecho de Matrícula","Seguros","Importe total S/"]
[null,"Cuota N° 1",{"$f":"+DATOS!C68","v":"2025-03-14"}]
[null,"Cuota N° 2",{"$f":"+DATOS!C69","v":"2025-04-16"}]
[null,"Cuota N° 3",{"$f":"+DATOS!C70","v":"2025-05-15"}]
[null,"Cuota N° 4",{"$f":"+DATOS!C71","v":"2025-06-16"}]
[null,"Cuota N° 5",{"$f":"+DATOS!C72","v":"2025-07-16"}]
[null,null,null,null,null,null,"TOTAL S/"]
[null,"(*) De acuerdo al Art. N°15 del Reglamento de pagos de derechos académicos ordinarios, pasada la fecha de vencimiento, abonarás el interés moratorio que resulte de aplicar la tasa de interés interbancaria fijada por el Banco Central de Reserva del Perú (BRCP)."]
[]
[null,"IMPORTANTE:"]
[null,"Si usted se matricula en menos créditos a los pagados en su Cuota N° 1, se le realizará una devolución por el pago en exceso en las fechas publicadas por la Universidad."]
[]
[null,"(1) Solo podrán afiliarse a un solo seguro oncológico; asimismo, solo podrán afiliarse al seguro de renta educacional los alumnos de pregrado. El costo del seguro por alumno y por semestre académico será cargado en dos partes: 50% en la segunda cuota y 50% en la tercera cuota académica. Para mayor información dirígase al siguiente enlace: https://www.pucp.edu.pe/servicio/seguros-para-estudiantes/ o comunicarse al siguiente correo segurospucp@pucp.edu.pe. "]
[null,"(2) No incluye las escalas de ciclos especiales (Programa de Segunda Especialidad de Psicología, Maestría en Gerencia Social, Maestría en Política y Gestión Universitaria, Doctorado en Derecho, Doctorados y Gastronomía) ni alumnos con la Beca LUCET."]
[null,"(3)  Para mayor información sobre las Modalidades de Pago, diríjase al siguiente enlace:https://estudiante.pucp.edu.pe/informacion-economica/escala-derechos-academicos-y-valor-del-credito/semestre-2025-1/"]
[null,"(4) Por el semestre 2025-1, la Universidad ha establecido medidas económicas de apoyo a los estudiantes como la reducción del número mínimo de créditos permitidos por cuota académica. Pasa de ser de dos (2) créditos a uno (1), a partir de la segunda cuota. "]